[Event "Kupreichik Memorial Open 2018"]
[Site "Minsk"]
[Date "2018.06.22"]
[Round "7"]
[White "Arlou, Valery"]
[Black "Drobyshevsky, Vasily"]
[Result "0-1"]
[ECO "A35"]
[WhiteElo "1743"]
[BlackElo "1551"]
[Annotator "NA"]
[PlyCount "89"]
[EventDate "2018.06.21"]
[EventCountry "BLR"]
[SourceTitle "playchess.com"]
[Source "ChessBase"]
[SourceQuality "1"]
[TimeControl "900+10"]

1. c4 {[%emt 0:00:00]} c5 {[%emt 0:00:01]} 2. Nc3 {[%emt 0:00:00]} Nc6 {[%emt 0:00:00]} 3. e4 {[%emt 0:00:01]} e6 {[%emt 0:00:03]} 4. g3 {[%emt 0:00:10]} Nf6 {[%emt 0:00:02]} 5. Bg2 {[%emt 0:00:03]} Be7 {[%emt 0:00:04]} 6. Nge2 {[%emt 0:00:03]} O-O {[%emt 0:00:35]} 7. O-O {[%emt 0:00:03]} d6 {[%emt 0:00:58]} 8. d4 {[%emt 0:01:08]} cxd4 {[%emt 0:00:07]} 9. Nxd4 {[%emt 0:00:02]} Nxd4 {[%emt 0:00:23]} 10. Qxd4 {[%emt 0:00:03]} e5 {[%emt 0:00:04]} 11. Qd3 {[%emt 0:00:22]} h6 {[%emt 0:00:09]} 12. b3 {[%emt 0:00:53]} a6 {[%emt 0:00:12]} 13. Rd1 {[%emt 0:01:34]} Qc7 {[%emt 0:01:14]} 14. Bb2 {[%emt 0:01:15]} Bd7 {[%emt 0:00:40]} 15. Rac1 {[%emt 0:00:20]} Rad8 {[%emt 0:01:33]} 16. b4 {[%emt 0:02:37]} Qb8 {[%emt 0:00:36]} 17. b5 {[%emt 0:00:35]} axb5 {[%emt 0:00:38]} 18. cxb5 {[%emt 0:00:02]} Be6 {[%emt 0:00:22]} 19. Nd5 {[%emt 0:00:33]} Nxd5 {[%emt 0:00:53]} 20. exd5 {[%emt 0:00:02]} Bd7 {[%emt 0:00:03]} 21. b6 {[%emt 0:00:12]} Rc8 {[%emt 0:00:06]} 22. h4 {[%emt 0:01:47]} Rxc1 {[%emt 0:00:05]} 23. Rxc1 Rc8 24. Rc4 {[%emt 0:01:33]} Rxc4 {[%emt 0:00:15]} 25. Qxc4 {[%emt 0:00:04]} Qc8 {[%emt 0:00:30]} 26. Qc7 {[%emt 0:00:35]} Bd8 {[%emt 0:00:34]} 27. Qxd6 {[%emt 0:00:13]} f6 {[%emt 0:00:15]} 28. Ba3 {[%emt 0:00:33]} Kf7 {[%emt 0:02:01]} 29. Bc5 {[%emt 0:00:38]} Bf5 {[%emt 0:01:07]} 30. h5 {[%emt 0:00:55]} Kg8 {[%emt 0:00:23]} 31. Kh2 {[%emt 0:00:18]} Kh7 {[%emt 0:00:07]} 32. f3 {[%emt 0:00:58]} Qa8 {[%emt 0:00:44]} 33. a3 {[%emt 0:00:35]} Qc8 {[%emt 0:00:33]} 34. Qf8 {[%emt 0:00:16]} Qd7 {[%emt 0:00:14]} 35. Qd6 {[%emt 0:00:09]} Qe8 {[%emt 0:00:05]} 36. g4 {[%emt 0:00:07]} Bc2 {[%emt 0:00:08]} 37. Bf1 {[%emt 0:00:45]} f5 {[%emt 0:00:19]} 38. Qf8 {[%emt 0:00:36]} Qd7 {[%emt 0:00:16]} 39. Qd6 {[%emt 0:00:26]} Qe8 {[%emt 0:00:02]} 40. Qe6 {[%emt 0:00:07]} Qa4 {[%emt 0:01:11]} 41. Qg6+ {[%emt 0:00:23]} Kh8 {[%emt 0:00:18]} 42. Qe8+ {[%emt 0:00:12]} Qxe8 {[%emt 0:00:02]} 43. d6 {[%emt 0:00:49]} fxg4 {[%emt 0:00:05]} 44. fxg4 {[%emt 0:00:02]} Qf7 {[%emt 0:00:10]} 45. Bg2 {time} 0-1

[Event "Kupreichik Memorial Open 2018"]
[Site "Minsk"]
[Date "2018.06.22"]
[Round "7"]
[White "Shvedau, Mikhail"]
[Black "Maslak, Alexander"]
[Result "0-1"]
[ECO "A45"]
[WhiteElo "1742"]
[BlackElo "2127"]
[Annotator "NA"]
[PlyCount "86"]
[EventDate "2018.06.21"]
[EventCountry "BLR"]
[SourceTitle "playchess.com"]
[Source "ChessBase"]
[SourceQuality "1"]
[TimeControl "900+10"]

1. d4 {[%emt 0:00:00]} Nf6 {[%emt 0:00:02]} 2. b3 {[%emt 0:00:00]} g6 {[%emt 0:00:27]} 3. Bb2 {[%emt 0:00:00]} Bg7 {[%emt 0:00:01]} 4. c4 {[%emt 0:00:02]} O-O {[%emt 0:00:11]} 5. Nd2 {[%emt 0:00:17]} d6 {[%emt 0:00:04]} 6. Qc2 {[%emt 0:00:07]} a5 {[%emt 0:01:00]} 7. g3 {[%emt 0:00:10]} Nbd7 {[%emt 0:00:15]} 8. Bg2 {[%emt 0:00:06]} e5 {[%emt 0:00:02]} 9. d5 {[%emt 0:00:17]} Nc5 {[%emt 0:00:10]} 10. e4 {[%emt 0:00:12]} Ne8 {[%emt 0:00:51]} 11. f4 {[%emt 0:00:50]} exf4 {[%emt 0:00:31]} 12. Bxg7 {[%emt 0:00:15]} Kxg7 {[%emt 0:00:54]} 13. Qc3+ {[%emt 0:00:25]} Qf6 {[%emt 0:00:03]} 14. Qxf6+ {[%emt 0:00:03]} Nxf6 {[%emt 0:00:07]} 15. gxf4 {[%emt 0:00:26]} Nd3+ {[%emt 0:02:08]} 16. Ke2 {[%emt 0:00:09]} Nxf4+ {[%emt 0:00:03]} 17. Kf3 {[%emt 0:00:02]} Nd3 {[%emt 0:01:47]} 18. Nh3 {[%emt 0:00:34]} Bg4+ {[%emt 0:01:50]} 19. Ke3 {[%emt 0:00:07]} Nc5 {[%emt 0:01:24]} 20. Nf2 {[%emt 0:00:09]} Rae8 {[%emt 0:00:25]} 21. Kd4 {[%emt 0:00:07]} Re7 {[%emt 0:00:36]} 22. a3 {[%emt 0:00:36]} Na6 {[%emt 0:00:54]} 23. h3 {[%emt 0:00:06]} Bc8 {[%emt 0:00:22]} 24. Kc3 {[%emt 0:00:10]} Nh5 {[%emt 0:00:21]} 25. Bf3 {[%emt 0:01:04]} Nf4 {[%emt 0:00:14]} 26. b4 {[%emt 0:00:09]} axb4+ {[%emt 0:00:02]} 27. axb4 {[%emt 0:00:03]} f5 {[%emt 0:00:04]} 28. Rae1 {[%emt 0:01:26]} fxe4 {[%emt 0:00:30]} 29. Nfxe4 {[%emt 0:00:02]} Nxh3 {[%emt 0:00:47]} 30. c5 {[%emt 0:00:23]} dxc5 {[%emt 0:00:36]} 31. bxc5 {[%emt 0:00:12]} Ref7 {[%emt 0:00:08]} 32. Re3 {[%emt 0:00:21]} Bf5 {[%emt 0:00:18]} 33. Ng3 {[%emt 0:01:29]} Ng5 {[%emt 0:00:56]} 34. d6 {[%emt 0:00:31]} Nxc5 {[%emt 0:00:30]} 35. Nxf5+ {[%emt 0:01:43]} gxf5 {[%emt 0:00:18]} 36. Bh5 {[%emt 0:00:22]} Nce4+ {[%emt 0:00:33]} 37. Nxe4 {[%emt 0:00:27]} Nxe4+ {[%emt 0:00:05]} 38. Kb4 {[%emt 0:00:01]} Rd7 {[%emt 0:00:18]} 39. Rg1+ {[%emt 0:00:10]} Kh8 {[%emt 0:00:21]} 40. dxc7 {[%emt 0:00:17]} Rxc7 {[%emt 0:00:01]} 41. Rh3 {[%emt 0:00:09]} Rf6 {[%emt 0:00:43]} 42. Rd3 {[%emt 0:00:24]} Rd6 {[%emt 0:00:11]} 43. Ra3 {[%emt 0:00:04]} Rb6+ {[%emt 0:00:06]} 0-1

[Event "Kupreichik Memorial Open 2018"]
[Site "Minsk"]
[Date "2018.06.22"]
[Round "7"]
[White "Bezenson, Anton"]
[Black "Tihonov, Jurij"]
[Result "0-1"]
[ECO "A04"]
[WhiteElo "1732"]
[BlackElo "2385"]
[Annotator "NA"]
[PlyCount "58"]
[EventDate "2018.06.21"]
[EventCountry "BLR"]
[SourceTitle "playchess.com"]
[Source "ChessBase"]
[SourceQuality "1"]
[TimeControl "900+10"]

1. Nf3 {[%emt 0:00:00]} c5 {[%emt 0:00:04]} 2. c4 {[%emt 0:00:00]} g6 {[%emt 0:00:03]} 3. Nc3 {[%emt 0:00:00]} Bg7 {[%emt 0:00:01]} 4. d4 {[%emt 0:00:00]} cxd4 {[%emt 0:00:01]} 5. Nxd4 {[%emt 0:00:00]} Nc6 {[%emt 0:00:01]} 6. Nc2 {[%emt 0:00:05]} d6 {[%emt 0:00:05]} 7. g3 {[%emt 0:00:04]} Be6 {[%emt 0:00:01]} 8. Nd5 {[%emt 0:00:26]} Nf6 {[%emt 0:00:04]} 9. Bg2 {[%emt 0:00:23]} O-O {[%emt 0:00:02]} 10. O-O {[%emt 0:00:09]} Ne5 {[%emt 0:00:05]} 11. Nce3 {[%emt 0:00:29]} Rc8 {[%emt 0:00:07]} 12. Qb3 {[%emt 0:00:10]} Bxd5 {[%emt 0:00:50]} 13. cxd5 {[%emt 0:00:15]} Qb6 {[%emt 0:00:09]} 14. Bd2 {[%emt 0:00:27]} Nfd7 {[%emt 0:00:04]} 15. Qxb6 {[%emt 0:01:11]} Nxb6 {[%emt 0:00:08]} 16. Bc3 {[%emt 0:02:12]} Nec4 {[%emt 0:00:12]} 17. Bxg7 {[%emt 0:00:53]} Kxg7 {[%emt 0:00:02]} 18. Nxc4 {[%emt 0:00:03]} Rxc4 {[%emt 0:00:04]} 19. b3 {[%emt 0:01:12]} Rc2 {[%emt 0:00:09]} 20. Rfc1 {[%emt 0:00:02]} Rfc8 {[%emt 0:00:02]} 21. Rxc2 {[%emt 0:00:12]} Rxc2 {[%emt 0:00:02]} 22. Kf1 {[%emt 0:00:05]} Kf6 {[%emt 0:00:10]} 23. Ke1 {[%emt 0:01:34]} a5 {[%emt 0:00:02]} 24. f4 {[%emt 0:01:02]} g5 {[%emt 0:00:06]} 25. Kd1 {[%emt 0:00:14]} Rb2 {[%emt 0:00:13]} 26. Bf3 {[%emt 0:00:33]} a4 {[%emt 0:00:02]} 27. Kc1 {[%emt 0:01:24]} a3 {[%emt 0:00:02]} 28. Kd1 {[%emt 0:02:08]} gxf4 {[%emt 0:00:05]} 29. gxf4 {[%emt 0:00:02]} Kf5 {[%emt 0:00:02]} 0-1

[Event "Kupreichik Memorial Open 2018"]
[Site "Minsk"]
[Date "2018.06.22"]
[Round "7"]
[White "Beliuga, Mikhail"]
[Black "Sarbay, Aleksandr"]
[Result "1-0"]
[ECO "A38"]
[WhiteElo "1699"]
[BlackElo "2183"]
[Annotator "NA"]
[PlyCount "115"]
[EventDate "2018.06.21"]
[EventCountry "BLR"]
[SourceTitle "playchess.com"]
[Source "ChessBase"]
[SourceQuality "1"]
[TimeControl "900+10"]

1. Nf3 {[%emt 0:00:00]} c5 {[%emt 0:00:06]} 2. c4 {[%emt 0:00:06]} Nf6 {[%emt 0:00:16]} 3. Nc3 {[%emt 0:00:23]} Nc6 {[%emt 0:00:01]} 4. g3 {[%emt 0:00:40]} g6 {[%emt 0:00:10]} 5. Bg2 {[%emt 0:00:01]} Bg7 {[%emt 0:00:01]} 6. O-O {[%emt 0:00:03]} O-O {[%emt 0:00:01]} 7. d3 {[%emt 0:00:29]} d6 {[%emt 0:00:39]} 8. a3 {[%emt 0:00:33]} Bd7 {[%emt 0:00:57]} 9. Rb1 {[%emt 0:00:37]} Qc8 {[%emt 0:00:37]} 10. b4 {[%emt 0:01:08]} cxb4 {[%emt 0:00:11]} 11. axb4 {[%emt 0:00:01]} Bh3 {[%emt 0:00:29]} 12. Bd2 {[%emt 0:01:48]} Bxg2 {[%emt 0:03:04]} 13. Kxg2 {[%emt 0:00:01]} Qf5 {[%emt 0:00:09]} 14. Qa4 {[%emt 0:01:08]} Ne5 {[%emt 0:01:39]} 15. Nd4 {[%emt 0:02:54]} Qh5 {[%emt 0:00:27]} 16. Ndb5 {[%emt 0:00:33]} a6 {[%emt 0:00:44]} 17. Nd4 {[%emt 0:03:25]} Qg4 {[%emt 0:03:03]} 18. Nc2 {[%emt 0:01:03]} h5 {[%emt 0:00:32]} 19. Ne3 {[%emt 0:02:52]} Qe6 {[%emt 0:00:02]} 20. b5 {[%emt 0:00:15]} h4 {[%emt 0:00:22]} 21. Qb4 {[%emt 0:00:18]} a5 {[%emt 0:00:58]} 22. Qb3 {[%emt 0:00:08]} h3+ {[%emt 0:00:20]} 23. Kg1 {[%emt 0:00:06]} Ned7 {[%emt 0:00:21]} 24. Rfe1 {[%emt 0:00:14]} Nc5 {[%emt 0:00:41]} 25. Qc2 {[%emt 0:00:01]} a4 {[%emt 0:00:41]} 26. Ncd5 {[%emt 0:00:02]} Nxd5 {[%emt 0:01:57]} 27. Nxd5 {[%emt 0:00:02]} Rad8 {[%emt 0:00:24]} 28. Bc3 {[%emt 0:00:05]} Bxc3 {[%emt 0:00:29]} 29. Nxc3 {[%emt 0:00:22]} b6 {[%emt 0:00:17]} 30. Ra1 {[%emt 0:00:18]} Nb3 {[%emt 0:00:04]} 31. Rxa4 {[%emt 0:00:05]} Nd4 {[%emt 0:00:03]} 32. Qd1 {[%emt 0:00:24]} Ra8 {[%emt 0:00:05]} 33. e3 {[%emt 0:00:03]} Nf5 {[%emt 0:00:20]} 34. Qa1 {[%emt 0:00:06]} Nh4 {[%emt 0:00:09]} 35. Rxa8 {[%emt 0:00:14]} Nf3+ {[%emt 0:00:07]} 36. Kh1 {[%emt 0:00:07]} Nxe1 {[%emt 0:00:05]} 37. Rxf8+ {[%emt 0:00:04]} Kxf8 {[%emt 0:00:01]} 38. Qxe1 {[%emt 0:00:02]} Qf6 {[%emt 0:00:02]} 39. Kg1 {[%emt 0:00:21]} g5 {[%emt 0:00:05]} 40. Ne4 {[%emt 0:00:12]} Qf3 {[%emt 0:00:05]} 41. Qf1 {[%emt 0:00:02]} g4 {[%emt 0:00:07]} 42. Ng5 {[%emt 0:00:25]} Qf5 {[%emt 0:00:06]} 43. f4 {[%emt 0:00:17]} d5 {[%emt 0:00:19]} 44. cxd5 {[%emt 0:00:09]} Qxd5 {[%emt 0:00:01]} 45. Nxh3 {[%emt 0:00:02]} gxh3 {[%emt 0:00:05]} 46. Qxh3 {[%emt 0:00:01]} e6 {[%emt 0:00:06]} 47. Qh8+ {[%emt 0:00:21]} Ke7 {[%emt 0:00:01]} 48. Qc3 {[%emt 0:00:14]} Qf3 {[%emt 0:00:08]} 49. Qd2 {[%emt 0:00:06]} f5 {[%emt 0:00:13]} 50. d4 {[%emt 0:00:11]} Qe4 {[%emt 0:00:05]} 51. Qe2 {[%emt 0:00:10]} Qd5 {[%emt 0:00:25]} 52. h4 {[%emt 0:00:09]} Kf6 {[%emt 0:00:05]} 53. h5 {[%emt 0:00:12]} Qe4 {[%emt 0:00:07]} 54. Kh2 {[%emt 0:00:11]} Kg7 {[%emt 0:00:13]} 55. g4 {[%emt 0:00:02]} fxg4 {[%emt 0:00:17]} 56. Qxg4+ {[%emt 0:00:02]} Kf8 {[%emt 0:00:03]} 57. Qe2 {[%emt 0:00:27]} Kg7 {[%emt 0:00:06]} 58. Qg2+ {[%emt 0:00:08]} 1-0

[Event "Kupreichik Memorial Open 2018"]
[Site "Minsk"]
[Date "2018.06.22"]
[Round "7"]
[White "Yurau, Maksim"]
[Black "Naumovich, Yaroslav"]
[Result "1/2-1/2"]
[ECO "D43"]
[WhiteElo "1694"]
[BlackElo "1959"]
[Annotator "NA"]
[PlyCount "78"]
[EventDate "2018.06.21"]
[EventCountry "BLR"]
[SourceTitle "playchess.com"]
[Source "ChessBase"]
[SourceQuality "1"]
[TimeControl "900+10"]

1. Nf3 {[%emt 0:00:00]} Nf6 {[%emt 0:00:00]} 2. d4 {[%emt 0:00:00]} d5 {[%emt 0:00:04]} 3. c4 {[%emt 0:00:00]} c6 {[%emt 0:00:01]} 4. Nc3 {[%emt 0:00:00]} e6 {[%emt 0:00:02]} 5. g3 {[%emt 0:00:12]} Bd6 {[%emt 0:00:01]} 6. Bg2 {[%emt 0:00:01]} O-O {[%emt 0:00:02]} 7. O-O {[%emt 0:01:23]} Nbd7 {[%emt 0:00:01]} 8. Qd3 {[%emt 0:00:25]} Re8 {[%emt 0:00:22]} 9. Rd1 {[%emt 0:00:48]} Qe7 {[%emt 0:00:52]} 10. e4 {[%emt 0:00:17]} dxe4 {[%emt 0:00:02]} 11. Nxe4 {[%emt 0:00:03]} Nxe4 {[%emt 0:00:01]} 12. Qxe4 {[%emt 0:00:03]} e5 {[%emt 0:00:50]} 13. Bg5 {[%emt 0:01:00]} f6 {[%emt 0:00:24]} 14. Be3 {[%emt 0:00:08]} exd4 {[%emt 0:00:56]} 15. Qxe7 {[%emt 0:00:35]} Bxe7 {[%emt 0:00:16]} 16. Bxd4 {[%emt 0:01:11]} Nf8 {[%emt 0:00:17]} 17. h3 {[%emt 0:02:46]} Be6 {[%emt 0:00:02]} 18. b3 {[%emt 0:00:02]} Bf7 {[%emt 0:00:01]} 19. Be3 {[%emt 0:01:03]} Bb4 {[%emt 0:00:15]} 20. Bd2 {[%emt 0:01:03]} Bxd2 {[%emt 0:01:21]} 21. Rxd2 {[%emt 0:00:03]} Rad8 {[%emt 0:00:01]} 22. Rad1 {[%emt 0:00:06]} Rxd2 {[%emt 0:00:02]} 23. Rxd2 {[%emt 0:00:02]} a5 {[%emt 0:00:39]} 24. Kf1 {[%emt 0:01:24]} a4 {[%emt 0:00:06]} 25. Re2 {[%emt 0:00:38]} Rd8 {[%emt 0:00:10]} 26. Ke1 {[%emt 0:01:06]} axb3 {[%emt 0:00:12]} 27. axb3 {[%emt 0:00:02]} Ne6 {[%emt 0:00:16]} 28. Rd2 {[%emt 0:00:15]} Re8 {[%emt 0:00:06]} 29. Kd1 {[%emt 0:00:45]} Ra8 {[%emt 0:00:16]} 30. Nd4 {[%emt 0:01:17]} Nc5 {[%emt 0:00:44]} 31. Kc2 {[%emt 0:01:50]} Bg6+ {[%emt 0:02:57]} 32. Kb2 {[%emt 0:00:32]} Re8 {[%emt 0:00:11]} 33. Nc2 {[%emt 0:00:49]} Kf8 {[%emt 0:01:46]} 34. Kc3 {[%emt 0:00:33]} Be4 {[%emt 0:00:20]} 35. Bf1 {[%emt 0:00:14]} Bg6 {[%emt 0:01:48]} 36. Bg2 {[%emt 0:00:06]} Be4 {[%emt 0:00:11]} 37. Bf1 {[%emt 0:00:01]} Bf5 {[%emt 0:00:01]} 38. Bg2 {[%emt 0:00:06]} Be4 {[%emt 0:02:26]} 39. Bf1 {[%emt 0:00:01]} Bf5 {[%emt 0:02:53]} 1/2-1/2

[Event "Kupreichik Memorial Open 2018"]
[Site "Minsk"]
[Date "2018.06.22"]
[Round "7"]
[White "Tarasenka, Aliaksandra"]
[Black "Uzlavataya, Anhelina"]
[Result "0-1"]
[ECO "D86"]
[WhiteElo "1682"]
[BlackElo "1925"]
[Annotator "NA"]
[PlyCount "70"]
[EventDate "2018.06.21"]
[EventCountry "BLR"]
[SourceTitle "playchess.com"]
[Source "ChessBase"]
[SourceQuality "1"]
[TimeControl "900+10"]

1. c4 {[%emt 0:00:00]} Nf6 {[%emt 0:00:18]} 2. Nc3 {[%emt 0:00:00]} d5 {[%emt 0:00:10]} 3. cxd5 {[%emt 0:00:18]} Nxd5 {[%emt 0:00:01]} 4. d4 {[%emt 0:00:27]} g6 {[%emt 0:00:17]} 5. e4 {[%emt 0:00:30]} Nxc3 {[%emt 0:00:02]} 6. bxc3 {[%emt 0:00:02]} Bg7 {[%emt 0:00:02]} 7. Bc4 {[%emt 0:00:29]} O-O {[%emt 0:00:12]} 8. h3 {[%emt 0:00:34]} c5 {[%emt 0:00:06]} 9. Nf3 {[%emt 0:00:36]} Nc6 {[%emt 0:01:03]} 10. Be3 {[%emt 0:00:44]} cxd4 {[%emt 0:00:30]} 11. cxd4 {[%emt 0:00:20]} Qa5+ {[%emt 0:00:11]} 12. Qd2 {[%emt 0:00:47]} Qxd2+ {[%emt 0:00:21]} 13. Kxd2 {[%emt 0:00:03]} Rd8 {[%emt 0:00:06]} 14. Kc3 {[%emt 0:00:29]} Na5 {[%emt 0:00:36]} 15. Bb3 {[%emt 0:01:55]} Nxb3 {[%emt 0:00:35]} 16. axb3 {[%emt 0:00:10]} Bd7 {[%emt 0:00:31]} 17. b4 {[%emt 0:06:38]} Rac8+ {[%emt 0:00:42]} 18. Kd2 {[%emt 0:00:23]} a6 {[%emt 0:00:06]} 19. Rac1 {[%emt 0:00:43]} Bc6 {[%emt 0:00:09]} 20. Kd3 {[%emt 0:00:22]} e5 {[%emt 0:00:51]} 21. d5 {[%emt 0:01:55]} f5 {[%emt 0:00:04]} 22. Rxc6 {[%emt 0:00:56]} bxc6 {[%emt 0:00:15]} 23. exf5 {[%emt 0:00:14]} gxf5 {[%emt 0:01:14]} 24. Ng5 {[%emt 0:00:13]} cxd5 {[%emt 0:00:58]} 25. Ne6 {[%emt 0:00:01]} Rd6 {[%emt 0:00:37]} 26. Nc5 {[%emt 0:00:08]} d4 {[%emt 0:00:30]} 27. Bg5 {[%emt 0:00:21]} e4+ {[%emt 0:00:03]} 28. Kd2 {[%emt 0:00:09]} Rb6 {[%emt 0:01:01]} 29. Rc1 {[%emt 0:00:11]} Rxb4 {[%emt 0:00:45]} 30. Nxa6 {[%emt 0:00:03]} Rb2+ {[%emt 0:00:16]} 31. Kd1 {[%emt 0:00:03]} Rxc1+ {[%emt 0:00:08]} 32. Bxc1 {[%emt 0:00:09]} Rxf2 {[%emt 0:00:11]} 33. g3 {[%emt 0:00:09]} d3 {[%emt 0:00:07]} 34. Nc5 {[%emt 0:00:10]} Rf1+ {[%emt 0:00:06]} 35. Kd2 {[%emt 0:00:02]} Bh6+ {[%emt 0:00:02]} 0-1

[Event "Kupreichik Memorial Open 2018"]
[Site "Minsk"]
[Date "2018.06.22"]
[Round "7"]
[White "Kozlov, Valentin"]
[Black "Polovkov, Valery"]
[Result "1-0"]
[ECO "B99"]
[WhiteElo "1553"]
[BlackElo "1830"]
[Annotator "NA"]
[PlyCount "87"]
[EventDate "2018.06.21"]
[EventCountry "BLR"]
[SourceTitle "playchess.com"]
[Source "ChessBase"]
[SourceQuality "1"]
[TimeControl "900+10"]

1. e4 {[%emt 0:00:00]} c5 {[%emt 0:00:06]} 2. Nf3 {[%emt 0:00:00]} d6 {[%emt 0:00:02]} 3. d4 {[%emt 0:00:00]} cxd4 {[%emt 0:00:03]} 4. Nxd4 {[%emt 0:00:00]} Nf6 {[%emt 0:00:02]} 5. Nc3 {[%emt 0:00:00]} a6 {[%emt 0:00:02]} 6. Bg5 {[%emt 0:00:00]} e6 {[%emt 0:00:01]} 7. f4 {[%emt 0:00:02]} Be7 {[%emt 0:00:10]} 8. Qf3 {[%emt 0:00:02]} Qc7 {[%emt 0:00:04]} 9. O-O-O {[%emt 0:00:08]} Nbd7 {[%emt 0:00:23]} 10. g4 {[%emt 0:00:26]} b5 {[%emt 0:00:18]} 11. Bxf6 {[%emt 0:00:07]} Nxf6 {[%emt 0:00:03]} 12. g5 {[%emt 0:00:02]} Nd7 {[%emt 0:00:01]} 13. f5 {[%emt 0:00:13]} Bxg5+ {[%emt 0:00:57]} 14. Kb1 {[%emt 0:00:02]} O-O {[%emt 0:06:50]} 15. Qg3 {[%emt 0:02:11]} Bf6 {[%emt 0:01:35]} 16. fxe6 {[%emt 0:01:03]} Nb6 {[%emt 0:00:46]} 17. Nd5 {[%emt 0:01:51]} Nxd5 {[%emt 0:00:09]} 18. exd5 {[%emt 0:00:13]} fxe6 {[%emt 0:01:06]} 19. Nxe6 {[%emt 0:00:36]} Bxe6 {[%emt 0:00:08]} 20. dxe6 {[%emt 0:00:02]} Be5 {[%emt 0:00:06]} 21. Qh3 {[%emt 0:00:55]} Rac8 {[%emt 0:00:22]} 22. Bd3 {[%emt 0:00:07]} g6 {[%emt 0:00:13]} 23. Rhf1 {[%emt 0:01:28]} Kg7 {[%emt 0:00:58]} 24. Rf7+ {[%emt 0:01:00]} Rxf7 {[%emt 0:00:14]} 25. exf7 {[%emt 0:00:02]} Rf8 {[%emt 0:00:15]} 26. Qg4 {[%emt 0:02:29]} Rxf7 {[%emt 0:00:16]} 27. h4 {[%emt 0:00:02]} Qd7 {[%emt 0:00:40]} 28. Qe4 {[%emt 0:00:54]} Qf5 {[%emt 0:00:57]} 29. Qc6 {[%emt 0:01:25]} Qf3 {[%emt 0:00:18]} 30. Qxf3 {[%emt 0:00:47]} Rxf3 {[%emt 0:00:01]} 31. Rh1 {[%emt 0:00:38]} h6 {[%emt 0:00:28]} 32. a4 {[%emt 0:00:06]} bxa4 {[%emt 0:00:05]} 33. Bxa6 {[%emt 0:00:01]} a3 {[%emt 0:00:06]} 34. b3 {[%emt 0:00:29]} Rf2 {[%emt 0:00:31]} 35. Bd3 {[%emt 0:00:30]} Rg2 {[%emt 0:00:19]} 36. Ka2 {[%emt 0:00:25]} Bb2 {[%emt 0:00:01]} 37. b4 {[%emt 0:00:07]} Rg4 {[%emt 0:00:12]} 38. b5 {[%emt 0:00:29]} g5 {[%emt 0:00:15]} 39. hxg5 {[%emt 0:00:10]} hxg5 {[%emt 0:00:01]} 40. b6 {[%emt 0:00:22]} Rb4 {[%emt 0:00:03]} 41. b7 {[%emt 0:00:33]} Kg8 {[%emt 0:00:07]} 42. Rh7 {[%emt 0:00:11]} Bc1 {[%emt 0:00:06]} 43. Rc7 {[%emt 0:00:20]} Rb2+ {[%emt 0:01:50]} 44. Ka1 {[%emt 0:00:01]} 1-0

[Event "Kupreichik Memorial Open 2018"]
[Site "Minsk"]
[Date "2018.06.22"]
[Round "7"]
[White "Tkachou, Pavel"]
[Black "Tyurin, Artem"]
[Result "0-1"]
[ECO "A49"]
[WhiteElo "1535"]
[BlackElo "1855"]
[Annotator "NA"]
[PlyCount "48"]
[EventDate "2018.06.21"]
[EventCountry "BLR"]
[SourceTitle "playchess.com"]
[Source "ChessBase"]
[SourceQuality "1"]
[TimeControl "900+10"]

1. d4 {[%emt 0:00:00]} Nf6 {[%emt 0:00:01]} 2. Nf3 {[%emt 0:00:00]} g6 {[%emt 0:00:01]} 3. g3 {[%emt 0:00:00]} Bg7 {[%emt 0:00:01]} 4. Bg2 {[%emt 0:00:00]} O-O {[%emt 0:00:03]} 5. O-O {[%emt 0:00:00]} d5 {[%emt 0:00:01]} 6. c4 {[%emt 0:00:00]} dxc4 {[%emt 0:00:08]} 7. Ne5 {[%emt 0:00:12]} Nc6 {[%emt 0:00:31]} 8. Nxc6 {[%emt 0:00:25]} bxc6 {[%emt 0:00:02]} 9. Bxc6 {[%emt 0:00:02]} Bh3 {[%emt 0:00:01]} 10. Re1 {[%emt 0:00:38]} Rb8 {[%emt 0:00:54]} 11. e3 {[%emt 0:02:18]} Nd5 {[%emt 0:00:11]} 12. Nc3 {[%emt 0:01:20]} Nb4 {[%emt 0:00:01]} 13. Be4 {[%emt 0:00:33]} e5 {[%emt 0:00:22]} 14. a3 {[%emt 0:02:32]} exd4 {[%emt 0:00:23]} 15. exd4 {[%emt 0:00:19]} Nd3 {[%emt 0:00:11]} 16. Bxd3 {[%emt 0:00:45]} cxd3 {[%emt 0:00:04]} 17. Qxd3 {[%emt 0:00:04]} Bxd4 {[%emt 0:00:02]} 18. Rd1 {[%emt 0:01:16]} Re8 {[%emt 0:01:00]} 19. Bf4 {[%emt 0:00:34]} Bxf2+ {[%emt 0:00:59]} 20. Kxf2 {[%emt 0:03:33]} Rxb2+ {[%emt 0:00:06]} 21. Kg1 {[%emt 0:00:27]} Re1+ {[%emt 0:00:09]} 22. Rxe1 {[%emt 0:00:27]} Qxd3 {[%emt 0:00:02]} 23. Bh6 {[%emt 0:00:10]} Qd4+ {[%emt 0:00:18]} 24. Kh1 {[%emt 0:00:03]} Bg2# {[%emt 0:00:02]} 0-1

[Event "Kupreichik Memorial Open 2018"]
[Site "Minsk"]
[Date "2018.06.22"]
[Round "7"]
[White "Boiko, Aleksei"]
[Black "Kruglikova, Viktorija"]
[Result "0-1"]
[ECO "A46"]
[WhiteElo "1526"]
[BlackElo "1839"]
[Annotator "NA"]
[PlyCount "74"]
[EventDate "2018.06.21"]
[EventCountry "BLR"]
[SourceTitle "playchess.com"]
[Source "ChessBase"]
[SourceQuality "1"]
[TimeControl "900+10"]

1. d4 {[%emt 0:00:00]} Nf6 {[%emt 0:00:01]} 2. Nf3 {[%emt 0:00:00]} e6 {[%emt 0:00:01]} 3. Bf4 {[%emt 0:00:00]} Be7 {[%emt 0:00:01]} 4. e3 {[%emt 0:00:00]} b6 {[%emt 0:00:01]} 5. Bd3 {[%emt 0:00:00]} Bb7 {[%emt 0:00:01]} 6. O-O {[%emt 0:00:00]} d6 {[%emt 0:00:03]} 7. c4 {[%emt 0:00:02]} Nh5 {[%emt 0:00:02]} 8. Bg3 {[%emt 0:00:03]} Nxg3 {[%emt 0:00:01]} 9. hxg3 {[%emt 0:00:01]} h5 {[%emt 0:00:08]} 10. Nc3 {[%emt 0:00:03]} h4 {[%emt 0:00:01]} 11. gxh4 {[%emt 0:00:30]} Bxh4 {[%emt 0:00:03]} 12. Be4 {[%emt 0:00:03]} d5 {[%emt 0:00:38]} 13. cxd5 {[%emt 0:00:02]} exd5 {[%emt 0:00:01]} 14. Bf5 {[%emt 0:00:02]} Qf6 {[%emt 0:00:25]} 15. e4 {[%emt 0:00:30]} g6 {[%emt 0:01:38]} 16. Bh3 {[%emt 0:00:56]} dxe4 {[%emt 0:00:12]} 17. Re1 {[%emt 0:00:29]} Qf4 {[%emt 0:00:58]} 18. d5 {[%emt 0:01:02]} f5 {[%emt 0:00:25]} 19. Qa4+ {[%emt 0:00:02]} Kf7 {[%emt 0:00:13]} 20. Nxe4 {[%emt 0:03:09]} Bxd5 {[%emt 0:02:50]} 21. Qd4 {[%emt 0:00:02]} Rd8 {[%emt 0:00:40]} 22. Nd6+ {[%emt 0:00:29]} Qxd6 {[%emt 0:00:07]} 23. Qxh4 {[%emt 0:00:15]} Nc6 {[%emt 0:00:28]} 24. Ng5+ {[%emt 0:00:02]} Kg7 {[%emt 0:00:07]} 25. Bxf5 {[%emt 0:06:03]} Rh8 {[%emt 0:01:03]} 26. Qg4 {[%emt 0:00:01]} Qh2+ {[%emt 0:01:07]} 27. Kf1 {[%emt 0:00:01]} Rh4 {[%emt 0:01:20]} 28. Nf3 {[%emt 0:01:56]} Bxf3 {[%emt 0:00:51]} 29. Qxf3 {[%emt 0:00:04]} Qh1+ {[%emt 0:00:01]} 30. Ke2 {[%emt 0:00:06]} Nd4+ {[%emt 0:00:02]} 31. Kd2 {[%emt 0:00:03]} Nxf3+ {[%emt 0:00:01]} 32. gxf3 {[%emt 0:00:03]} Rd8+ {[%emt 0:00:03]} 33. Bd3 {[%emt 0:00:05]} Qxf3 {[%emt 0:00:08]} 34. Re7+ {[%emt 0:00:21]} Kf6 {[%emt 0:00:05]} 35. Re3 {[%emt 0:00:03]} Qxf2+ {[%emt 0:00:02]} 36. Re2 {[%emt 0:00:02]} Rxd3+ {[%emt 0:00:25]} 37. Kxd3 {[%emt 0:00:04]} Rd4+ {[%emt 0:00:02]} 0-1